[Event "Titled Tuesday Blitz June 13 Late 2023"]
[White "Jumabayev, Rinat"]
[Black "Sun, Rick"]
[WhiteFideId "13702661"]
[BlackFideId "30909481"]
[WhiteElo "2561"]
[BlackElo "2169"]
[Result "0-1"]
[Round "10"]
[TimeControl "180+2"]
[Date "2023.06.13"]
[WhiteClock "0:00:00"]
[BlackClock "0:00:02"]
[Board "21"]

1. e4 {[%clk 0:03:00]}  e5 {[%clk 0:03:00]} 2. Nf3 {[%clk 0:03:00]}  Nc6 {[%clk 0:03:00]} 3. Bb5 {[%clk 0:03:00]}  a6 {[%clk 0:03:00]} 4. Ba4 {[%clk 0:03:01]}  Nf6 {[%clk 0:03:01]} 5. O-O {[%clk 0:03:01]}  Be7 {[%clk 0:03:01]} 6. Re1 {[%clk 0:03:00]}  b5 {[%clk 0:03:01]} 7. Bb3 {[%clk 0:03:01]}  d6 {[%clk 0:03:01]} 8. c3 {[%clk 0:03:01]}  O-O {[%clk 0:03:02]} 9. h3 {[%clk 0:03:02]}  Na5 {[%clk 0:03:02]} 10. Bc2 {[%clk 0:03:02]}  d5 {[%clk 0:03:02]} 11. exd5 {[%clk 0:02:53]}  e4 {[%clk 0:03:02]} 12. Bxe4 {[%clk 0:02:33]}  Nxe4 {[%clk 0:03:03]} 13. Rxe4 {[%clk 0:02:33]}  Bb7 {[%clk 0:03:00]} 14. d4 {[%clk 0:02:33]}  Nc4 {[%clk 0:02:57]} 15. b3 {[%clk 0:02:27]}  Nb6 {[%clk 0:02:55]} 16. Nbd2 {[%clk 0:02:23]}  Nxd5 {[%clk 0:02:52]} 17. Bb2 {[%clk 0:02:23]}  b4 {[%clk 0:02:38]} 18. cxb4 {[%clk 0:02:20]}  Nxb4 {[%clk 0:02:22]} 19. Re3 {[%clk 0:02:19]}  Nd5 {[%clk 0:02:18]} 20. Re1 {[%clk 0:02:20]}  Nf4 {[%clk 0:01:56]} 21. Ne4 {[%clk 0:02:17]}  Bb4 {[%clk 0:01:48]} 22. Bc3 {[%clk 0:02:03]}  Bxc3 {[%clk 0:00:48]} 23. Nxc3 {[%clk 0:01:48]}  Qf6 {[%clk 0:00:40]} 24. Ne4 {[%clk 0:01:47]}  Qg6 {[%clk 0:00:30]} 25. Ng3 {[%clk 0:01:47]}  Rad8 {[%clk 0:00:26]} 26. Rc1 {[%clk 0:01:40]}  Qd6 {[%clk 0:00:21]} 27. Re3 {[%clk 0:01:30]}  h6 {[%clk 0:00:20]} 28. Kh2 {[%clk 0:01:21]}  h5 {[%clk 0:00:19]} 29. h4 {[%clk 0:01:13]}  Rfe8 {[%clk 0:00:14]} 30. Qd2 {[%clk 0:01:04]}  Nd5 {[%clk 0:00:12]} 31. Rxe8+ {[%clk 0:01:01]}  Rxe8 {[%clk 0:00:13]} 32. Ne5 {[%clk 0:01:01]}  Nf6 {[%clk 0:00:11]} 33. Re1 {[%clk 0:00:44]}  Rxe5 {[%clk 0:00:08]} 34. Rxe5 {[%clk 0:00:24]}  Ng4+ {[%clk 0:00:08]} 35. Kg1 {[%clk 0:00:23]}  Nxe5 {[%clk 0:00:09]} 36. Nf5 {[%clk 0:00:23]}  Qf6 {[%clk 0:00:03]} 37. Ng3 {[%clk 0:00:18]}  Qf3 {[%clk 0:00:01]} 38. gxf3 {[%clk 0:00:06]}  Nxf3+ {[%clk 0:00:02]} 39. Kf1 {[%clk 0:00:06]}  Nxd2+ {[%clk 0:00:03]} 40. Ke2 {[%clk 0:00:07]}  Ne4 {[%clk 0:00:04]} 41. Nxh5 {[%clk 0:00:07]}  Nf6 {[%clk 0:00:04]} 42. Nf4 {[%clk 0:00:06]}  Nd5 {[%clk 0:00:04]} 43. Nd3 {[%clk 0:00:06]}  g6 {[%clk 0:00:04]} 44. Nc5 {[%clk 0:00:07]}  Bc8 {[%clk 0:00:05]} 45. f3 {[%clk 0:00:07]}  Nb4 {[%clk 0:00:05]} 46. a3 {[%clk 0:00:06]}  Nc6 {[%clk 0:00:06]} 47. Ke3 {[%clk 0:00:06]}  Kg7 {[%clk 0:00:06]} 48. b4 {[%clk 0:00:07]}  Ne7 {[%clk 0:00:06]} 49. Kf4 {[%clk 0:00:06]}  Nf5 {[%clk 0:00:07]} 50. Ke5 {[%clk 0:00:06]}  Nxh4 {[%clk 0:00:07]} 51. Ke4 {[%clk 0:00:07]}  Bf5+ {[%clk 0:00:06]} 52. Ke3 {[%clk 0:00:07]}  Bc8 {[%clk 0:00:07]} 53. a4 {[%clk 0:00:07]}  Nf5+ {[%clk 0:00:08]} 54. Ke4 {[%clk 0:00:07]}  Kf6 {[%clk 0:00:08]} 55. Kd5 {[%clk 0:00:04]}  Nd6 {[%clk 0:00:08]} 56. Kc6 {[%clk 0:00:05]}  Nf5 {[%clk 0:00:07]} 57. d5 {[%clk 0:00:04]}  Nd4+ {[%clk 0:00:05]} 58. Kxc7 {[%clk 0:00:05]}  Nxf3 {[%clk 0:00:06]} 59. Kxc8 {[%clk 0:00:05]}  Ne5 {[%clk 0:00:06]} 60. Nxa6 {[%clk 0:00:01]}  g5 {[%clk 0:00:06]} 61. Nc5 {[%clk 0:00:02]}  g4 {[%clk 0:00:07]} 62. a5 {[%clk 0:00:03]}  Kf5 {[%clk 0:00:06]} 63. a6 {[%clk 0:00:03]}  g3 {[%clk 0:00:07]} 64. a7 {[%clk 0:00:04]}  g2 {[%clk 0:00:07]} 65. a8=Q {[%clk 0:00:05]}  g1=Q {[%clk 0:00:08]} 66. Qa4 {[%clk 0:00:04]}  Ng6 {[%clk 0:00:05]} 67. Qc2+ {[%clk 0:00:04]}  Kf6 {[%clk 0:00:05]} 68. Qc3+ {[%clk 0:00:04]}  Kf5 {[%clk 0:00:05]} 69. Qd3+ {[%clk 0:00:04]}  Kf6 {[%clk 0:00:05]} 70. Qf3+ {[%clk 0:00:04]}  Kg7 {[%clk 0:00:05]} 71. d6 {[%clk 0:00:04]}  Qa1 {[%clk 0:00:04]} 72. d7 {[%clk 0:00:03]}  Ne7+ {[%clk 0:00:04]} 73. Kb8 {[%clk 0:00:02]}  Qe5+ {[%clk 0:00:02]} 74. Kb7 {[%clk 0:00:02]}  Qd6 {[%clk 0:00:02]} 75. Qg4+ {[%clk 0:00:02]}  Kh7 {[%clk 0:00:02]} 76. Qe4+ {[%clk 0:00:00]}  Kg7 {[%clk 0:00:02]} 0-1


[Site "https://www.chess.com"]

[Event "Titled Tuesday Blitz June 13 Late 2023"]
[White "Pap, Gyula"]
[Black "Adewumi, Tanitoluwa"]
[WhiteFideId "725323"]
[BlackFideId "30966396"]
[WhiteElo "2519"]
[BlackElo "2651"]
[Result "0-1"]
[Round "10"]
[TimeControl "180+2"]
[Date "2023.06.13"]
[WhiteClock "0:00:00"]
[BlackClock "0:00:09"]
[Board "22"]

1. d4 {[%clk 0:03:00]}  Nf6 {[%clk 0:02:35]} 2. c4 {[%clk 0:03:01]}  e6 {[%clk 0:02:29]} 3. Nc3 {[%clk 0:03:01]}  Bb4 {[%clk 0:02:28]} 4. Qb3 {[%clk 0:03:01]}  a5 {[%clk 0:02:22]} 5. a3 {[%clk 0:03:01]}  a4 {[%clk 0:02:21]} 6. Qxb4 {[%clk 0:02:23]}  Nc6 {[%clk 0:02:14]} 7. Qc5 {[%clk 0:02:23]}  Ra5 {[%clk 0:02:08]} 8. Nb5 {[%clk 0:02:23]}  d6 {[%clk 0:01:59]} 9. Qg5 {[%clk 0:02:18]}  Nxd4 {[%clk 0:01:59]} 10. Nxd4 {[%clk 0:01:48]}  Rxg5 {[%clk 0:01:49]} 11. Bxg5 {[%clk 0:01:49]}  h6 {[%clk 0:01:46]} 12. Bxf6 {[%clk 0:01:39]}  Qxf6 {[%clk 0:01:45]} 13. O-O-O {[%clk 0:01:14]}  Qxf2 {[%clk 0:01:42]} 14. e4 {[%clk 0:01:07]}  Qe3+ {[%clk 0:01:32]} 15. Kb1 {[%clk 0:01:07]}  Qxe4+ {[%clk 0:01:31]} 16. Nc2 {[%clk 0:01:02]}  e5 {[%clk 0:01:20]} 17. Nf3 {[%clk 0:01:02]}  O-O {[%clk 0:01:03]} 18. Bd3 {[%clk 0:01:02]}  Qg4 {[%clk 0:01:01]} 19. Ne3 {[%clk 0:01:00]}  Qf4 {[%clk 0:01:01]} 20. Nd5 {[%clk 0:00:59]}  Qg4 {[%clk 0:00:57]} 21. Ne3 {[%clk 0:00:20]}  Qf4 {[%clk 0:00:47]} 22. Rhe1 {[%clk 0:00:20]}  Be6 {[%clk 0:00:41]} 23. Nd5 {[%clk 0:00:05]}  Bxd5 {[%clk 0:00:37]} 24. cxd5 {[%clk 0:00:06]}  f5 {[%clk 0:00:38]} 25. Bc2 {[%clk 0:00:07]}  b5 {[%clk 0:00:34]} 26. Rf1 {[%clk 0:00:05]}  Qg4 {[%clk 0:00:20]} 27. h3 {[%clk 0:00:04]}  Qg3 {[%clk 0:00:15]} 28. Ne1 {[%clk 0:00:03]}  g6 {[%clk 0:00:10]} 29. Rf3 {[%clk 0:00:00]}  Qh4 {[%clk 0:00:09]} 0-1


[Site "https://www.chess.com"]

[Event "Titled Tuesday Blitz June 13 Late 2023"]
[White "Chernobay, Artem"]
[Black "Rustemov, Alexander"]
[WhiteFideId "4167406"]
[BlackFideId "4119002"]
[WhiteElo "2474"]
[BlackElo "2786"]
[Result "1-0"]
[Round "10"]
[TimeControl "180+2"]
[Date "2023.06.13"]
[WhiteClock "0:00:08"]
[BlackClock "0:00:00"]
[Board "25"]

1. d4 {[%clk 0:03:00]}  d5 {[%clk 0:02:59]} 2. c4 {[%clk 0:03:01]}  c6 {[%clk 0:02:59]} 3. Nf3 {[%clk 0:03:01]}  Nf6 {[%clk 0:02:59]} 4. Nc3 {[%clk 0:03:01]}  a6 {[%clk 0:02:59]} 5. c5 {[%clk 0:03:00]}  Bf5 {[%clk 0:02:56]} 6. Qb3 {[%clk 0:02:58]}  Qc8 {[%clk 0:02:55]} 7. Na4 {[%clk 0:02:46]}  Nbd7 {[%clk 0:02:53]} 8. Nh4 {[%clk 0:02:46]}  Bg6 {[%clk 0:02:45]} 9. g3 {[%clk 0:02:35]}  e5 {[%clk 0:02:34]} 10. Bh3 {[%clk 0:02:35]}  Qc7 {[%clk 0:02:25]} 11. O-O {[%clk 0:02:34]}  Be7 {[%clk 0:02:24]} 12. dxe5 {[%clk 0:02:30]}  Nxe5 {[%clk 0:02:20]} 13. Bf4 {[%clk 0:02:30]}  Ne4 {[%clk 0:02:13]} 14. Nf3 {[%clk 0:01:53]}  f6 {[%clk 0:02:03]} 15. Nd4 {[%clk 0:01:52]}  Bf7 {[%clk 0:01:56]} 16. Rac1 {[%clk 0:01:35]}  O-O {[%clk 0:01:53]} 17. Be6 {[%clk 0:01:24]}  Rae8 {[%clk 0:01:45]} 18. Bxf7+ {[%clk 0:01:17]}  Rxf7 {[%clk 0:01:45]} 19. Kg2 {[%clk 0:01:06]}  f5 {[%clk 0:01:40]} 20. f3 {[%clk 0:00:47]}  Ng5 {[%clk 0:01:36]} 21. h4 {[%clk 0:00:44]}  Ne4 {[%clk 0:01:14]} 22. fxe4 {[%clk 0:00:42]}  fxe4 {[%clk 0:01:15]} 23. Nc3 {[%clk 0:00:24]}  Bd8 {[%clk 0:00:53]} 24. Nd1 {[%clk 0:00:17]}  Qd7 {[%clk 0:00:47]} 25. Ne3 {[%clk 0:00:16]}  Ng6 {[%clk 0:00:33]} 26. Bd6 {[%clk 0:00:15]}  Bxh4 {[%clk 0:00:31]} 27. Rxf7 {[%clk 0:00:12]}  Kxf7 {[%clk 0:00:26]} 28. Rf1+ {[%clk 0:00:10]}  Kg8 {[%clk 0:00:27]} 29. gxh4 {[%clk 0:00:10]}  Nxh4+ {[%clk 0:00:27]} 30. Kf2 {[%clk 0:00:11]}  h6 {[%clk 0:00:21]} 31. Ke1 {[%clk 0:00:09]}  Kh7 {[%clk 0:00:20]} 32. Nef5 {[%clk 0:00:08]}  Ng6 {[%clk 0:00:14]} 33. Qg3 {[%clk 0:00:08]}  b6 {[%clk 0:00:12]} 34. Rg1 {[%clk 0:00:08]}  Qf7 {[%clk 0:00:13]} 35. cxb6 {[%clk 0:00:08]}  c5 {[%clk 0:00:12]} 36. Bxc5 {[%clk 0:00:07]}  Rc8 {[%clk 0:00:12]} 37. b7 {[%clk 0:00:07]}  Rxc5 {[%clk 0:00:12]} 38. b8=Q {[%clk 0:00:07]}  Rc1+ {[%clk 0:00:11]} 39. Kd2 {[%clk 0:00:07]}  Rc4 {[%clk 0:00:05]} 40. Qxg6+ {[%clk 0:00:07]}  Qxg6 {[%clk 0:00:05]} 41. Rxg6 {[%clk 0:00:08]}  Kxg6 {[%clk 0:00:06]} 42. Qe8+ {[%clk 0:00:08]}  Kh7 {[%clk 0:00:00]} 43. Qf7 {[%clk 0:00:08]} 1-0


[Site "https://www.chess.com"]

[Event "Titled Tuesday Blitz June 13 Late 2023"]
[White "Santos Ruiz, Miguel"]
[Black "Bayo Milagro, Alvaro"]
[WhiteFideId "22291482"]
[BlackFideId "22275240"]
[WhiteElo "2499"]
[BlackElo "2270"]
[Result "1/2-1/2"]
[Round "10"]
[TimeControl "180+2"]
[Date "2023.06.13"]
[WhiteClock "0:00:12"]
[BlackClock "0:00:04"]
[Board "26"]

1. e4 {[%clk 0:03:00]}  e5 {[%clk 0:03:00]} 2. Nf3 {[%clk 0:03:00]}  Nf6 {[%clk 0:03:00]} 3. Nxe5 {[%clk 0:02:58]}  d6 {[%clk 0:03:00]} 4. Nf3 {[%clk 0:02:58]}  Nxe4 {[%clk 0:03:00]} 5. d4 {[%clk 0:02:58]}  d5 {[%clk 0:03:00]} 6. Bd3 {[%clk 0:02:59]}  Bd6 {[%clk 0:03:00]} 7. O-O {[%clk 0:02:58]}  O-O {[%clk 0:03:01]} 8. Re1 {[%clk 0:02:56]}  Bf5 {[%clk 0:02:54]} 9. Nbd2 {[%clk 0:02:47]}  Re8 {[%clk 0:02:51]} 10. Nf1 {[%clk 0:02:30]}  Bg6 {[%clk 0:02:45]} 11. c4 {[%clk 0:02:25]}  c6 {[%clk 0:02:45]} 12. Qb3 {[%clk 0:02:21]}  Qd7 {[%clk 0:02:21]} 13. Ng3 {[%clk 0:02:08]}  Nxg3 {[%clk 0:02:12]} 14. Rxe8+ {[%clk 0:02:05]}  Qxe8 {[%clk 0:02:11]} 15. hxg3 {[%clk 0:02:02]}  Bxd3 {[%clk 0:02:10]} 16. Qxd3 {[%clk 0:02:01]}  dxc4 {[%clk 0:02:10]} 17. Qxc4 {[%clk 0:02:01]}  Nd7 {[%clk 0:02:10]} 18. Bf4 {[%clk 0:01:57]}  Bxf4 {[%clk 0:02:06]} 19. gxf4 {[%clk 0:01:57]}  Nb6 {[%clk 0:02:06]} 20. Qb3 {[%clk 0:01:57]}  Qd7 {[%clk 0:01:57]} 21. Re1 {[%clk 0:01:45]}  Re8 {[%clk 0:01:52]} 22. Re5 {[%clk 0:01:44]}  g6 {[%clk 0:00:37]} 23. Qe3 {[%clk 0:01:36]}  Re6 {[%clk 0:00:33]} 24. Ng5 {[%clk 0:01:25]}  Rxe5 {[%clk 0:00:29]} 25. fxe5 {[%clk 0:01:23]}  Nc4 {[%clk 0:00:14]} 26. Qf4 {[%clk 0:00:59]}  Qf5 {[%clk 0:00:08]} 27. Qh4 {[%clk 0:00:58]}  h5 {[%clk 0:00:06]} 28. Ne4 {[%clk 0:00:58]}  Nxb2 {[%clk 0:00:04]} 29. Qd8+ {[%clk 0:00:58]}  Kg7 {[%clk 0:00:05]} 30. Nf6 {[%clk 0:00:56]}  Nd3 {[%clk 0:00:03]} 31. f3 {[%clk 0:00:24]}  Nf4 {[%clk 0:00:03]} 32. Qg8+ {[%clk 0:00:21]}  Kh6 {[%clk 0:00:04]} 33. Qxf7 {[%clk 0:00:19]}  Nh3+ {[%clk 0:00:01]} 34. gxh3 {[%clk 0:00:18]}  Qb1+ {[%clk 0:00:02]} 35. Kf2 {[%clk 0:00:17]}  Qc2+ {[%clk 0:00:02]} 36. Ke3 {[%clk 0:00:16]}  Qc3+ {[%clk 0:00:02]} 37. Ke4 {[%clk 0:00:14]}  Qc2+ {[%clk 0:00:02]} 38. Ke3 {[%clk 0:00:13]}  Qc3+ {[%clk 0:00:03]} 39. Kf2 {[%clk 0:00:13]}  Qd2+ {[%clk 0:00:03]} 40. Kg3 {[%clk 0:00:13]}  Qe1+ {[%clk 0:00:02]} 41. Kg2 {[%clk 0:00:10]}  Qe2+ {[%clk 0:00:02]} 42. Kg3 {[%clk 0:00:10]}  Qe1+ {[%clk 0:00:03]} 43. Kf4 {[%clk 0:00:10]}  Qd2+ {[%clk 0:00:03]} 44. Ke4 {[%clk 0:00:11]}  Qe2+ {[%clk 0:00:03]} 45. Kf4 {[%clk 0:00:11]}  Qd2+ {[%clk 0:00:03]} 46. Kg3 {[%clk 0:00:12]}  Qe1+ {[%clk 0:00:04]} 1/2-1/2


[Site "https://www.chess.com"]

[Event "Titled Tuesday Blitz June 13 Late 2023"]
[White "Lin, Dachey"]
[Black "HamedWafa4"]
[WhiteFideId "2029650"]
[WhiteElo "2313"]
[BlackElo "2560"]
[Result "1-0"]
[Round "10"]
[TimeControl "180+2"]
[Date "2023.06.13"]
[WhiteClock "0:00:59"]
[BlackClock "0:00:22"]
[Board "30"]

1. g4 {[%clk 0:03:00]}  d5 {[%clk 0:02:55]} 2. Bg2 {[%clk 0:02:57]}  Bxg4 {[%clk 0:02:55]} 3. c4 {[%clk 0:02:57]}  c6 {[%clk 0:02:55]} 4. Qb3 {[%clk 0:02:56]}  Qd7 {[%clk 0:02:53]} 5. cxd5 {[%clk 0:02:56]}  Nf6 {[%clk 0:02:53]} 6. Nc3 {[%clk 0:02:55]}  e6 {[%clk 0:02:50]} 7. h3 {[%clk 0:02:54]}  Bf5 {[%clk 0:02:42]} 8. e4 {[%clk 0:02:54]}  Bg6 {[%clk 0:02:42]} 9. dxe6 {[%clk 0:02:54]}  fxe6 {[%clk 0:02:42]} 10. d4 {[%clk 0:02:54]}  Na6 {[%clk 0:02:34]} 11. Be3 {[%clk 0:02:52]}  O-O-O {[%clk 0:02:24]} 12. Nf3 {[%clk 0:02:50]}  Bh5 {[%clk 0:02:09]} 13. Ne5 {[%clk 0:02:49]}  Qc7 {[%clk 0:02:09]} 14. Qxe6+ {[%clk 0:02:33]}  Kb8 {[%clk 0:02:09]} 15. a3 {[%clk 0:02:30]}  Bd6 {[%clk 0:02:02]} 16. f4 {[%clk 0:02:29]}  Rhe8 {[%clk 0:01:58]} 17. Qc4 {[%clk 0:02:18]}  Nd7 {[%clk 0:01:47]} 18. O-O {[%clk 0:02:16]}  Rf8 {[%clk 0:01:36]} 19. b4 {[%clk 0:02:11]}  Nf6 {[%clk 0:01:24]} 20. Rab1 {[%clk 0:02:05]}  Ka8 {[%clk 0:01:08]} 21. b5 {[%clk 0:01:43]}  cxb5 {[%clk 0:01:01]} 22. Qxb5 {[%clk 0:01:44]}  Be8 {[%clk 0:00:55]} 23. Qb3 {[%clk 0:01:23]}  Nh5 {[%clk 0:00:48]} 24. Nd5 {[%clk 0:01:18]}  Qb8 {[%clk 0:00:48]} 25. Nc4 {[%clk 0:01:16]}  Bc6 {[%clk 0:00:45]} 26. e5 {[%clk 0:01:00]}  Bxe5 {[%clk 0:00:22]} 27. Nxe5 {[%clk 0:00:59]} 1-0


[Site "https://www.chess.com"]

[Event "Titled Tuesday Blitz June 13 Late 2023"]
[White "Korchmar, Vasiliy"]
[Black "Vakhlamov, Igor L."]
[WhiteFideId "24131750"]
[BlackFideId "24126748"]
[WhiteElo "2370"]
[BlackElo "2407"]
[Result "1-0"]
[Round "10"]
[TimeControl "180+2"]
[Date "2023.06.13"]
[WhiteClock "0:00:03"]
[BlackClock "0:00:01"]
[Board "34"]

1. e4 {[%clk 0:03:00]}  c5 {[%clk 0:02:48]} 2. Nf3 {[%clk 0:03:01]}  e6 {[%clk 0:02:48]} 3. g3 {[%clk 0:03:00]}  d5 {[%clk 0:02:49]} 4. exd5 {[%clk 0:03:00]}  exd5 {[%clk 0:02:49]} 5. d4 {[%clk 0:02:56]}  Nc6 {[%clk 0:02:47]} 6. Bg2 {[%clk 0:02:56]}  Nf6 {[%clk 0:02:43]} 7. O-O {[%clk 0:02:57]}  Be7 {[%clk 0:02:43]} 8. dxc5 {[%clk 0:02:55]}  Bxc5 {[%clk 0:02:44]} 9. a3 {[%clk 0:02:53]}  a5 {[%clk 0:02:42]} 10. Nc3 {[%clk 0:02:53]}  h6 {[%clk 0:02:35]} 11. Nb5 {[%clk 0:02:42]}  O-O {[%clk 0:02:35]} 12. Nfd4 {[%clk 0:02:26]}  Nxd4 {[%clk 0:02:27]} 13. Nxd4 {[%clk 0:02:25]}  Qb6 {[%clk 0:02:26]} 14. c3 {[%clk 0:02:24]}  Bxd4 {[%clk 0:02:25]} 15. Qxd4 {[%clk 0:02:20]}  Qxd4 {[%clk 0:02:24]} 16. cxd4 {[%clk 0:02:20]}  Bf5 {[%clk 0:02:25]} 17. Bf4 {[%clk 0:02:13]}  Rac8 {[%clk 0:02:23]} 18. Rfc1 {[%clk 0:02:12]}  Bd3 {[%clk 0:02:17]} 19. Bh3 {[%clk 0:01:34]}  Rc4 {[%clk 0:02:07]} 20. Rxc4 {[%clk 0:01:20]}  dxc4 {[%clk 0:01:48]} 21. Bc7 {[%clk 0:01:19]}  a4 {[%clk 0:01:27]} 22. Bg2 {[%clk 0:01:12]}  Be4 {[%clk 0:01:16]} 23. Bxe4 {[%clk 0:01:09]}  Nxe4 {[%clk 0:01:17]} 24. d5 {[%clk 0:01:10]}  Nf6 {[%clk 0:01:15]} 25. d6 {[%clk 0:00:58]}  Re8 {[%clk 0:01:15]} 26. Rd1 {[%clk 0:00:55]}  Nd7 {[%clk 0:01:14]} 27. Kf1 {[%clk 0:00:37]}  Re5 {[%clk 0:00:54]} 28. Rd4 {[%clk 0:00:36]}  b5 {[%clk 0:00:54]} 29. f4 {[%clk 0:00:36]}  Re3 {[%clk 0:00:53]} 30. Rd5 {[%clk 0:00:36]}  Rb3 {[%clk 0:00:52]} 31. Rd2 {[%clk 0:00:34]}  c3 {[%clk 0:00:27]} 32. bxc3 {[%clk 0:00:35]}  Rxc3 {[%clk 0:00:28]} 33. Rb2 {[%clk 0:00:32]}  Rxa3 {[%clk 0:00:26]} 34. Rxb5 {[%clk 0:00:33]}  Rd3 {[%clk 0:00:26]} 35. Ra5 {[%clk 0:00:30]}  a3 {[%clk 0:00:27]} 36. Ke2 {[%clk 0:00:30]}  Rb3 {[%clk 0:00:26]} 37. Ra7 {[%clk 0:00:17]}  Rb2+ {[%clk 0:00:16]} 38. Ke3 {[%clk 0:00:16]}  a2 {[%clk 0:00:17]} 39. h4 {[%clk 0:00:14]}  f5 {[%clk 0:00:16]} 40. Kd4 {[%clk 0:00:07]}  Kf7 {[%clk 0:00:16]} 41. Kd5 {[%clk 0:00:07]}  Rd2+ {[%clk 0:00:16]} 42. Kc6 {[%clk 0:00:07]}  Ke6 {[%clk 0:00:16]} 43. Ra8 {[%clk 0:00:06]}  Rc2+ {[%clk 0:00:17]} 44. Kb5 {[%clk 0:00:06]}  Rg2 {[%clk 0:00:17]} 45. Kc4 {[%clk 0:00:04]}  Rc2+ {[%clk 0:00:13]} 46. Kb5 {[%clk 0:00:04]}  g6 {[%clk 0:00:13]} 47. Kb4 {[%clk 0:00:04]}  Kd5 {[%clk 0:00:13]} 48. Kb3 {[%clk 0:00:04]}  Rg2 {[%clk 0:00:13]} 49. Rxa2 {[%clk 0:00:04]}  Rxg3+ {[%clk 0:00:13]} 50. Kb4 {[%clk 0:00:04]}  Rg4 {[%clk 0:00:13]} 51. Rd2+ {[%clk 0:00:02]}  Ke4 {[%clk 0:00:12]} 52. Re2+ {[%clk 0:00:03]}  Kd5 {[%clk 0:00:12]} 53. Re7 {[%clk 0:00:03]}  Kc6 {[%clk 0:00:12]} 54. Re6 {[%clk 0:00:02]}  Rxf4+ {[%clk 0:00:12]} 55. Kc3 {[%clk 0:00:02]}  Rg4 {[%clk 0:00:12]} 56. h5 {[%clk 0:00:02]}  gxh5 {[%clk 0:00:12]} 57. Rxh6 {[%clk 0:00:02]}  h4 {[%clk 0:00:13]} 58. Kd3 {[%clk 0:00:02]}  Kd5 {[%clk 0:00:13]} 59. Ke3 {[%clk 0:00:02]}  Ne5 {[%clk 0:00:11]} 60. Kf2 {[%clk 0:00:02]}  f4 {[%clk 0:00:10]} 61. Rh5 {[%clk 0:00:02]}  Ke4 {[%clk 0:00:10]} 62. Rxe5+ {[%clk 0:00:02]}  Kxe5 {[%clk 0:00:01]} 63. d7+ {[%clk 0:00:03]} 1-0


[Site "https://www.chess.com"]

[Event "Titled Tuesday Blitz June 13 Late 2023"]
[White "Makridis, Dimitrios"]
[Black "Prydun, Andriy"]
[WhiteFideId "25864475"]
[BlackFideId "14145898"]
[WhiteElo "2277"]
[BlackElo "2164"]
[Result "1-0"]
[Round "10"]
[TimeControl "180+2"]
[Date "2023.06.13"]
[WhiteClock "0:00:34"]
[BlackClock "0:00:05"]
[Board "39"]

1. e4 {[%clk 0:03:00]}  c6 {[%clk 0:02:59]} 2. d4 {[%clk 0:02:51]}  d5 {[%clk 0:02:59]} 3. exd5 {[%clk 0:02:52]}  cxd5 {[%clk 0:02:59]} 4. Bd3 {[%clk 0:02:53]}  Nc6 {[%clk 0:02:58]} 5. c3 {[%clk 0:02:50]}  Qc7 {[%clk 0:02:59]} 6. h3 {[%clk 0:02:47]}  e5 {[%clk 0:02:54]} 7. dxe5 {[%clk 0:02:45]}  Nxe5 {[%clk 0:02:51]} 8. Nf3 {[%clk 0:02:45]}  Nf6 {[%clk 0:02:47]} 9. O-O {[%clk 0:02:43]}  Bd6 {[%clk 0:02:47]} 10. Nxe5 {[%clk 0:02:39]}  Bxe5 {[%clk 0:02:45]} 11. Bb5+ {[%clk 0:02:37]}  Bd7 {[%clk 0:02:44]} 12. Bxd7+ {[%clk 0:02:35]}  Nxd7 {[%clk 0:02:40]} 13. Qxd5 {[%clk 0:02:34]}  O-O {[%clk 0:02:39]} 14. Nd2 {[%clk 0:02:33]}  Nf6 {[%clk 0:02:36]} 15. Qf3 {[%clk 0:02:31]}  Rfe8 {[%clk 0:02:33]} 16. Rd1 {[%clk 0:02:24]}  Rad8 {[%clk 0:02:32]} 17. Nf1 {[%clk 0:02:22]}  Rxd1 {[%clk 0:02:12]} 18. Qxd1 {[%clk 0:02:20]}  Qc6 {[%clk 0:02:01]} 19. Be3 {[%clk 0:02:18]}  Nd5 {[%clk 0:01:51]} 20. Qf3 {[%clk 0:01:28]}  Nxe3 {[%clk 0:01:35]} 21. Qxc6 {[%clk 0:01:23]}  bxc6 {[%clk 0:01:35]} 22. Nxe3 {[%clk 0:01:23]}  Bf4 {[%clk 0:01:25]} 23. Rd1 {[%clk 0:01:06]}  h5 {[%clk 0:01:23]} 24. Nc4 {[%clk 0:01:03]}  Re2 {[%clk 0:01:22]} 25. Kf1 {[%clk 0:00:59]}  Rc2 {[%clk 0:01:22]} 26. g3 {[%clk 0:01:00]}  Bh6 {[%clk 0:01:21]} 27. h4 {[%clk 0:00:57]}  g5 {[%clk 0:01:17]} 28. hxg5 {[%clk 0:00:56]}  Bxg5 {[%clk 0:01:18]} 29. Ke1 {[%clk 0:00:55]}  f5 {[%clk 0:01:10]} 30. Rd6 {[%clk 0:00:47]}  Kg7 {[%clk 0:00:59]} 31. Rxc6 {[%clk 0:00:44]}  f4 {[%clk 0:00:59]} 32. Ne5 {[%clk 0:00:44]}  Bf6 {[%clk 0:00:50]} 33. Rc7+ {[%clk 0:00:40]}  Kg8 {[%clk 0:00:48]} 34. gxf4 {[%clk 0:00:38]}  Bg7 {[%clk 0:00:48]} 35. Nd3 {[%clk 0:00:33]}  h4 {[%clk 0:00:47]} 36. Kd1 {[%clk 0:00:33]}  h3 {[%clk 0:00:05]} 37. Rc5 {[%clk 0:00:34]} 1-0


[Site "https://www.chess.com"]